Workbook

Sheet CCA
A1: When using this tool, reference graphs and data as:
A2: Andrej Zwitter, Comprehensive Context, Correlation and Effect Analysis Tool, ECFAR 2014; available online <http://ecfar.org/CCAnalysis.html>
B4: Pre Best | C4: Pre-Emergency Context: | D4: Pre Worst
A5: Environment | B5: 4 | D5: 4
A6: Health | B6: 4 | D6: 3
A7: Political | B7: 3 | D7: 2
A8: Economic | B8: 5 | D8: 4
A9: Social | B9: 6 | D9: 4
A10: Food | B10: 5 | D10: 5
B12: Post Best | C12: Post-Emergency Context: | D12: Post Worst
A13: Environment | B13: 4 | D13: 4
A14: Health | B14: 3 | D14: 2
A15: Political | B15: 5 | D15: 5
A16: Economic | B16: 4 | D16: 3
A17: Social | B17: 4 | D17: 3
A18: Food | B18: 3 | D18: 2
A20: Capabilities and Constraints

Sheet CCA Visualization (hidden)
A1: When Using this tool reference graphs and data as:
A2: Andrej Zwitter, Comprehensive Context, Correlation and Effect Analysis Tool, ECFAR 2014; available online <http://ecfar.org/CCAnalysis.html>
A4: In order to delete slots for actors/hazards not used: 1) Klick with the right mouse button on the graph. 2) Klick "Select Data" 3) Klick on the letters representing actors/hazards not used (A-M) and press "Remove"

Sheet Correlational Analysis
A1: When using this tool, reference graphs and data as:
A2: Andrej Zwitter, Comprehensive Context, Correlation and Effect Analysis Tool, ECFAR 2014; available online <http://ecfar.org/CCAnalysis.html>
B4: Environm. context | C4: Health context | D4: Political context | E4: Economic context | F4: Social context | G4: Food context | H4: Centrality Score
A5: Environm. context | B5: 0 | C5: 0 | D5: 1 | E5: 0 | F5: 1 | G5: 0 | H5: =SUM(B5:G5)/5 -> 0.4
A6: Health context | B6: =C5 -> 0 | C6: 0 | D6: 2 | E6: 1 | F6: 2 | G6: 3 | H6: 1.6
A7: Political context | B7: =D5 -> 1 | C7: =D6 -> 2 | D7: 0 | E7: 1 | F7: 3 | G7: 2 | H7: 1.8
A8: Economic context | B8: =E5 -> 0 | C8: =E6 -> 1 | D8: =E7 -> 1 | E8: 0 | F8: 2 | G8: 2 | H8: 1.2
A9: Social context | B9: =F5 -> 1 | C9: =F6 -> 2 | D9: =F7 -> 3 | E9: =F8 -> 2 | F9: 0 | G9: 3 | H9: 2.2
A10: Food context | B10: =G5 -> 0 | C10: =G6 -> 3 | D10: =G7 -> 2 | E10: =G8 -> 2 | F10: =G9 -> 3 | G10: 0 | H10: 2

Sheet AGIRI Calculations
A1: When using this tool, reference graphs and data as:
A2: Andrej Zwitter, Comprehensive dimension, Correlation and Effect Analysis Tool, ECFAR 2014; available online <http://ecfar.org/CCAnalysis.html>
A3: Stakeholder - Trend Calculation
A4: Actor | B4: Context Dimension | C4: Salience | D4: Capab. | E4: Eff. Power
A5: Government | B5: Environmental | C5: 0.2 | D5: 1 | E5: =C5*D5 -> 0.2
B6: Health | E6: =C6*D6 -> 0
B7: Political | C7: 1 | D7: 1 | E7: 1
B8: Economic | C8: 1 | D8: 2 | E8: 2
B9: Social | C9: 1 | D9: 3 | E9: 3
B10: Food | C10: 0.5 | D10: 2 | E10: 1
A11: UNDP | B11: Environmental | C11: -0.4 | D11: 3 | E11: -1.2
B12: Health | E12: 0
B13: Political | E13: 0
B14: Economic | E14: 0
B15: Social | E15: 0
B16: Food | E16: 0
A17: OCHA | B17: Environmental | C17: 1 | D17: 3 | E17: 3
B18: Health | E18: 0
B19: Political | E19: 0
B20: Economic | C20: 1 | D20: 3 | E20: 3
B21: Social | E21: 0
B22: Food | E22: 0
A23: Belingerents | B23: Environmental | C23: -0.1 | D23: 4 | E23: -0.4
B24: Health | E24: 0
B25: Political | E25: 0
B26: Economic | E26: 0
B27: Social | C27: 1 | D27: 1 | E27: 1
B28: Food | E28: 0
A29: Military | B29: Environmental | E29: 0
B30: Health | E30: 0
B31: Political | E31: 0
B32: Economic | E32: 0
B33: Social | E33: 0
B34: Food | C34: -0.2 | D34: 2 | E34: -0.4
A35: F | B35: Environmental | E35: 0
B36: Health | E36: 0
B37: Political | C37: -0.9 | D37: 1 | E37: -0.9
B38: Economic | E38: 0
B39: Social | E39: 0
B40: Food | E40: 0
A41: G | B41: Environmental | E41: 0
B42: Health | E42: 0
B43: Political | E43: 0
B44: Economic | E44: 0
B45: Social | C45: -0.9 | D45: 1 | E45: -0.9
B46: Food | E46: 0
A47: H | B47: Environmental | C47: 1 | D47: 1 | E47: 1
B48: Health | E48: 0
B49: Political | E49: 0
B50: Economic | E50: 0
B51: Social | E51: 0
B52: Food | E52: 0
A53: I | B53: Environmental | E53: 0
B54: Health | C54: -0.9 | D54: 1 | E54: -0.9
B55: Political | E55: 0
B56: Economic | E56: 0
B57: Social | E57: 0
B58: Food | E58: 0
A59: J | B59: Environmental | E59: 0
B60: Health | E60: 0
B61: Political | E61: 0
B62: Economic | E62: 0
B63: Social | E63: 0
B64: Food | E64: 0
A65: K | B65: Environmental | E65: 0
B66: Health | E66: 0
B67: Political | E67: 0
B68: Economic | E68: 0
B69: Social | E69: 0
B70: Food | E70: =C70*D70 -> 0
A71: L | B71: Environmental | E71: 0
B72: Health | E72: 0
B73: Political | E73: 0
B74: Economic | E74: 0
B75: Social | E75: 0
B76: Food | E76: 0
A77: M | B77: Environmental | E77: 0
B78: Health | E78: 0
B79: Political | E79: 0
B80: Economic | E80: 0
B81: Social | E81: 0
B82: Food | E82: 0
A83: N | B83: Environmental | E83: 0
B84: Health | E84: 0
B85: Political | E85: 0
B86: Economic | E86: 0
B87: Social | E87: 0
B88: Food | E88: 0
A89: O | B89: Environmental | E89: 0
B90: Health | E90: 0
B91: Political | E91: 0
B92: Economic | E92: 0
B93: Social | E93: 0
B94: Food | E94: 0
A95: P | B95: Environmental | E95: 0
B96: Health | E96: 0
B97: Political | E97: 0
B98: Economic | E98: 0
B99: Social | E99: 0
B100: Food | E100: 0
A101: Q | B101: Environmental | E101: 0
B102: Health | E102: 0
B103: Political | E103: 0
B104: Economic | E104: 0
B105: Social | E105: 0
B106: Food | E106: 0
A107: R | B107: Environmental | E107: 0
B108: Health | E108: 0
B109: Political | E109: 0
B110: Economic | E110: 0
B111: Social | E111: 0
B112: Food | E112: 0
A113: S | B113: Environmental | E113: 0
B114: Health | E114: 0
B115: Political | E115: 0
B116: Economic | E116: 0
B117: Social | E117: 0
B118: Food | E118: 0
A119: T | B119: Environmental | E119: 0
B120: Health | E120: 0
B121: Political | E121: 0
B122: Economic | E122: 0
B123: Social | E123: 0
B124: Food | E124: 0
A125: U | B125: Environmental | E125: 0
B126: Health | E126: 0
B127: Political | E127: 0
B128: Economic | E128: 0
B129: Social | E129: 0
B130: Food | E130: 0
A131: V | B131: Environmental | E131: 0
B132: Health | E132: 0
B133: Political | E133: 0
B134: Economic | E134: =C134*D134 -> 0
B135: Social | E135: 0
B136: Food | E136: 0
A137: W | B137: Environmental | E137: 0
B138: Health | E138: 0
B139: Political | E139: 0
B140: Economic | E140: 0
B141: Social | E141: 0
B142: Food | E142: 0
A143: X | B143: Environmental | E143: 0
B144: Health | E144: 0
B145: Political | E145: 0
B146: Economic | E146: 0
B147: Social | E147: 0
B148: Food | E148: 0
A149: Y | B149: Environmental | E149: 0
B150: Health | E150: 0
B151: Political | E151: 0
B152: Economic | E152: 0
B153: Social | E153: 0
B154: Food | E154: 0
A155: Z | B155: Environmental | E155: 0
B156: Health | E156: 0
B157: Political | E157: 0
B158: Economic | E158: 0
B159: Social | E159: 0
B160: Food | E160: 0

Sheet Actor Salience (hidden)
N3: This tool will map the first ten actors in order to keep the visualisation simple to analyse. If you want further actors to be mapped follow the following steps: 1. Right click the graph (e.g. Food dimension) 2. Select Data 3. Add Series 4. Click on the button beside “Name” 5. Select Work Sheet “AGIRI Calculations” 6. Select the Cell that contains the actor’s name and press Enter 7. Click on the button beside “X-Values” 8. Select Work Sheet “AGIRI Calculations” 9. Select the Cell that contains the actor’s salience for the specific dimension and press Enter 10. Click on the button beside “X-Values” 11. Select Work Sheet “AGIRI Calculations” 12. Select the Cell that contains the actor’s salience for the specific dimension and press Enter 13. Click on the button beside “Y-Values” 14. Select Work Sheet “AGIRI Calculations” 15. Select the Cell that contains the actor’s capabilities for the specific dimension and press Enter 16. A new actor has been added to your graph

Sheet Trend Pre-Post (hidden)
A1: When Using this tool reference graphs and data as:
A2: Andrej Zwitter, Comprehensive Context, Correlation and Effect Analysis Tool, ECFAR 2014; available online <http://ecfar.org/CCAnalysis.html>

Sheet Trend Current (hidden)
A1: When Using this tool reference graphs and data as:
A2: Andrej Zwitter, Comprehensive Context, Correlation and Effect Analysis Tool, ECFAR 2014; available online <http://ecfar.org/CCAnalysis.html>

Sheet Syntax (hidden)
A1: SYNTAX DO NOT CHANGE - SYNTAX DO NOT CHANGE - SYNTAX DO NOT CHANGE - SYNTAX DO NOT CHANGE - SYNTAX DO NOT CHANGE
E2: Time | F2: context State | H2: context relevant actors and hazards
F3: Environmental Lower Trend | G3: Environmental Upper Trend | H3: ='Trend Calculation'!B3 -> Government | I3: ='Trend Calculation'!C3 -> UNDP | J3: ='Trend Calculation'!D3 -> OCHA | K3: ='Trend Calculation'!E3 -> Belingerents | L3: ='Trend Calculation'!F3 -> Military | M3: ='Trend Calculation'!G3 -> F | N3: ='Trend Calculation'!H3 -> G | O3: ='Trend Calculation'!I3 -> H | P3: ='Trend Calculation'!J3 -> I | Q3: ='Trend Calculation'!K3 -> J | R3: ='Trend Calculation'!L3 -> K | S3: ='Trend Calculation'!M3 -> L | T3: ='Trend Calculation'!N3 -> M | U3: ='Trend Calculation'!O3 -> N | V3: ='Trend Calculation'!P3 -> O | W3: ='Trend Calculation'!Q3 -> P | X3: ='Trend Calculation'!R3 -> Q | Y3: ='Trend Calculation'!S3 -> R | Z3: ='Trend Calculation'!T3 -> S | AA3: ='Trend Calculation'!U3 -> T | AB3: ='Trend Calculation'!V3 -> U | AC3: ='Trend Calculation'!W3 -> V | AD3: ='Trend Calculation'!X3 -> W | AE3: ='Trend Calculation'!Y3 -> X | AF3: ='Trend Calculation'!Z3 -> Y | AG3: ='Trend Calculation'!AA3 -> Z
E4: t=-1 | F4: =CCA!D5 -> 4 | G4: =CCA!B5 -> 4
E5: t=0 | F5: =CCA!D13 -> 4 | G5: =CCA!B13 -> 4 | H5: 4.5 | I5: 4.5 | J5: 4.5 | K5: 6 | L5: 6 | M5: 6 | N5: 6 | O5: 6 | P5: 6 | Q5: 7 | R5: 8 | S5: 9 | T5: 10 | U5: 11 | V5: 12 | W5: 13 | X5: 14 | Y5: 15 | Z5: 16 | AA5: 17 | AB5: 18 | AC5: 19 | AD5: 20 | AE5: 21 | AF5: 22 | AG5: 23
E6: t=1 | F6: ='Trend Calculation'!AB4 -> 6.6 | G6: ='Trend Calculation'!AB13 -> 6.6 | H6: ='Trend Calculation'!B4 -> 0.2 | I6: ='Trend Calculation'!C4 -> -1.2 | J6: ='Trend Calculation'!D4 -> 3 | K6: ='Trend Calculation'!E4 -> -0.4 | L6: ='Trend Calculation'!F4 -> 0 | M6: ='Trend Calculation'!G4 -> 0 | N6: ='Trend Calculation'!H4 -> 0 | O6: ='Trend Calculation'!I4 -> 1 | P6: ='Trend Calculation'!J4 -> 0 | Q6: ='Trend Calculation'!K4 -> 0 | R6: ='Trend Calculation'!L4 -> 0 | S6: ='Trend Calculation'!M4 -> 0 | T6: ='Trend Calculation'!N4 -> 0 | U6: ='Trend Calculation'!O4 -> 0 | V6: ='Trend Calculation'!P4 -> 0 | W6: ='Trend Calculation'!Q4 -> 0 | X6: ='Trend Calculation'!R4 -> 0 | Y6: ='Trend Calculation'!S4 -> 0 | Z6: ='Trend Calculation'!T4 -> 0 | AA6: ='Trend Calculation'!U4 -> 0 | AB6: ='Trend Calculation'!V4 -> 0 | AC6: ='Trend Calculation'!W4 -> 0 | AD6: ='Trend Calculation'!X4 -> 0 | AE6: ='Trend Calculation'!Y4 -> 0 | AF6: ='Trend Calculation'!Z4 -> 0 | AG6: ='Trend Calculation'!AA4 -> 0
F7: Health Lower Trend | G7: Health Upper Trend | H7: ='Trend Calculation'!B3 -> Government | I7: ='Trend Calculation'!C3 -> UNDP | J7: ='Trend Calculation'!D3 -> OCHA | K7: ='Trend Calculation'!E3 -> Belingerents | L7: ='Trend Calculation'!F3 -> Military | M7: ='Trend Calculation'!G3 -> F | N7: ='Trend Calculation'!H3 -> G | O7: ='Trend Calculation'!I3 -> H | P7: ='Trend Calculation'!J3 -> I | Q7: ='Trend Calculation'!K3 -> J | R7: ='Trend Calculation'!L3 -> K | S7: ='Trend Calculation'!M3 -> L | T7: ='Trend Calculation'!N3 -> M | U7: ='Trend Calculation'!O3 -> N | V7: ='Trend Calculation'!P3 -> O | W7: ='Trend Calculation'!Q3 -> P | X7: ='Trend Calculation'!R3 -> Q | Y7: ='Trend Calculation'!S3 -> R | Z7: ='Trend Calculation'!T3 -> S | AA7: ='Trend Calculation'!U3 -> T | AB7: ='Trend Calculation'!V3 -> U | AC7: ='Trend Calculation'!W3 -> V | AD7: ='Trend Calculation'!X3 -> W | AE7: ='Trend Calculation'!Y3 -> X | AF7: ='Trend Calculation'!Z3 -> Y | AG7: ='Trend Calculation'!AA3 -> Z
E8: t=-1 | F8: =CCA!D6 -> 3 | G8: =CCA!B6 -> 4
E9: t=0 | F9: =CCA!D14 -> 2 | G9: =CCA!B14 -> 3 | H9: 3.5 | I9: 3.5 | J9: 3.5 | K9: 5 | L9: 5 | M9: 5 | N9: 5 | O9: 5 | P9: 5 | Q9: 6 | R9: 7 | S9: 8 | T9: 9 | U9: 10 | V9: 11 | W9: 12 | X9: 13 | Y9: 14 | Z9: 15 | AA9: 16 | AB9: 17 | AC9: 18 | AD9: 19 | AE9: 20 | AF9: 21 | AG9: 22
E10: t=1 | F10: ='Trend Calculation'!AB5 -> 1.1 | G10: ='Trend Calculation'!AB14 -> 2.1 | H10: ='Trend Calculation'!B5 -> 0 | I10: ='Trend Calculation'!C5 -> 0 | J10: ='Trend Calculation'!D5 -> 0 | K10: ='Trend Calculation'!E5 -> 0 | L10: ='Trend Calculation'!F5 -> 0 | M10: ='Trend Calculation'!G5 -> 0 | N10: ='Trend Calculation'!H5 -> 0 | O10: ='Trend Calculation'!I5 -> 0 | P10: ='Trend Calculation'!J5 -> -0.9 | Q10: ='Trend Calculation'!K5 -> 0 | R10: ='Trend Calculation'!L5 -> 0 | S10: ='Trend Calculation'!M5 -> 0 | T10: ='Trend Calculation'!N5 -> 0 | U10: ='Trend Calculation'!O5 -> 0 | V10: ='Trend Calculation'!P5 -> 0 | W10: ='Trend Calculation'!Q5 -> 0 | X10: ='Trend Calculation'!R5 -> 0 | Y10: ='Trend Calculation'!S5 -> 0 | Z10: ='Trend Calculation'!T5 -> 0 | AA10: ='Trend Calculation'!U5 -> 0 | AB10: ='Trend Calculation'!V5 -> 0 | AC10: ='Trend Calculation'!W5 -> 0 | AD10: ='Trend Calculation'!X5 -> 0 | AE10: ='Trend Calculation'!Y5 -> 0 | AF10: ='Trend Calculation'!Z5 -> 0 | AG10: ='Trend Calculation'!AA5 -> 0
F11: Political Lower Trend | G11: Political Upper Trend | H11: ='Trend Calculation'!B3 -> Government | I11: ='Trend Calculation'!C3 -> UNDP | J11: ='Trend Calculation'!D3 -> OCHA | K11: ='Trend Calculation'!E3 -> Belingerents | L11: ='Trend Calculation'!F3 -> Military | M11: ='Trend Calculation'!G3 -> F | N11: ='Trend Calculation'!H3 -> G | O11: ='Trend Calculation'!I3 -> H | P11: ='Trend Calculation'!J3 -> I | Q11: ='Trend Calculation'!K3 -> J | R11: ='Trend Calculation'!L3 -> K | S11: ='Trend Calculation'!M3 -> L | T11: ='Trend Calculation'!N3 -> M | U11: ='Trend Calculation'!O3 -> N | V11: ='Trend Calculation'!P3 -> O | W11: ='Trend Calculation'!Q3 -> P | X11: ='Trend Calculation'!R3 -> Q | Y11: ='Trend Calculation'!S3 -> R | Z11: ='Trend Calculation'!T3 -> S | AA11: ='Trend Calculation'!U3 -> T | AB11: ='Trend Calculation'!V3 -> U | AC11: ='Trend Calculation'!W3 -> V | AD11: ='Trend Calculation'!X3 -> W | AE11: ='Trend Calculation'!Y3 -> X | AF11: ='Trend Calculation'!Z3 -> Y | AG11: ='Trend Calculation'!AA3 -> Z
E12: t=-1 | F12: =CCA!D7 -> 2 | G12: =CCA!B7 -> 3
E13: t=0 | F13: =CCA!D15 -> 5 | G13: =CCA!B15 -> 5 | H13: 5 | I13: 5 | J13: 3.5 | K13: 5.72 | L13: 5 | M13: 5.072 | N13: 5 | O13: 5 | P13: 5 | Q13: 6 | R13: 7 | S13: 8 | T13: 9 | U13: 10 | V13: 11 | W13: 12 | X13: 13 | Y13: 14 | Z13: 15 | AA13: 16 | AB13: 17 | AC13: 18 | AD13: 19 | AE13: 20 | AF13: 21 | AG13: 22
E14: t=1 | F14: ='Trend Calculation'!AB6 -> 5.1 | G14: ='Trend Calculation'!AB15 -> 5.1 | H14: ='Trend Calculation'!B6 -> 1 | I14: ='Trend Calculation'!C6 -> 0 | J14: ='Trend Calculation'!D6 -> 0 | K14: ='Trend Calculation'!E6 -> 0 | L14: ='Trend Calculation'!F6 -> 0 | M14: ='Trend Calculation'!G6 -> -0.9 | N14: ='Trend Calculation'!H6 -> 0 | O14: ='Trend Calculation'!I6 -> 0 | P14: ='Trend Calculation'!J6 -> 0 | Q14: ='Trend Calculation'!K6 -> 0 | R14: ='Trend Calculation'!L6 -> 0 | S14: ='Trend Calculation'!M6 -> 0 | T14: ='Trend Calculation'!N6 -> 0 | U14: ='Trend Calculation'!O6 -> 0 | V14: ='Trend Calculation'!P6 -> 0 | W14: ='Trend Calculation'!Q6 -> 0 | X14: ='Trend Calculation'!R6 -> 0 | Y14: ='Trend Calculation'!S6 -> 0 | Z14: ='Trend Calculation'!T6 -> 0 | AA14: ='Trend Calculation'!U6 -> 0 | AB14: ='Trend Calculation'!V6 -> 0 | AC14: ='Trend Calculation'!W6 -> 0 | AD14: ='Trend Calculation'!X6 -> 0 | AE14: ='Trend Calculation'!Y6 -> 0 | AF14: ='Trend Calculation'!Z6 -> 0 | AG14: ='Trend Calculation'!AA6 -> 0
F15: Economic Lower Trend | G15: Economic Upper Trend | H15: ='Trend Calculation'!B3 -> Government | I15: ='Trend Calculation'!C3 -> UNDP | J15: ='Trend Calculation'!D3 -> OCHA | K15: ='Trend Calculation'!E3 -> Belingerents | L15: ='Trend Calculation'!F3 -> Military | M15: ='Trend Calculation'!G3 -> F | N15: ='Trend Calculation'!H3 -> G | O15: ='Trend Calculation'!I3 -> H | P15: ='Trend Calculation'!J3 -> I | Q15: ='Trend Calculation'!K3 -> J | R15: ='Trend Calculation'!L3 -> K | S15: ='Trend Calculation'!M3 -> L | T15: ='Trend Calculation'!N3 -> M | U15: ='Trend Calculation'!O3 -> N | V15: ='Trend Calculation'!P3 -> O | W15: ='Trend Calculation'!Q3 -> P | X15: ='Trend Calculation'!R3 -> Q | Y15: ='Trend Calculation'!S3 -> R | Z15: ='Trend Calculation'!T3 -> S | AA15: ='Trend Calculation'!U3 -> T | AB15: ='Trend Calculation'!V3 -> U | AC15: ='Trend Calculation'!W3 -> V | AD15: ='Trend Calculation'!X3 -> W | AE15: ='Trend Calculation'!Y3 -> X | AF15: ='Trend Calculation'!Z3 -> Y | AG15: ='Trend Calculation'!AA3 -> Z
E16: t=-1 | F16: =CCA!D8 -> 4 | G16: =CCA!B8 -> 5
E17: t=0 | F17: =CCA!D16 -> 3 | G17: =CCA!B16 -> 4 | H17: 2.5 | I17: 4 | J17: 4 | K17: 4.72 | L17: 4.072 | M17: 4.072 | N17: 4 | O17: 4 | P17: 4 | Q17: 5 | R17: 6 | S17: 7 | T17: 8 | U17: 9 | V17: 10 | W17: 11 | X17: 12 | Y17: 13 | Z17: 14 | AA17: 15 | AB17: 16 | AC17: 17 | AD17: 18 | AE17: 19 | AF17: 20 | AG17: 21
E18: t=1 | F18: ='Trend Calculation'!AB7 -> 8 | G18: ='Trend Calculation'!AB16 -> 9 | H18: ='Trend Calculation'!B7 -> 2 | I18: ='Trend Calculation'!C7 -> 0 | J18: ='Trend Calculation'!D7 -> 3 | K18: ='Trend Calculation'!E7 -> 0 | L18: ='Trend Calculation'!F7 -> 0 | M18: ='Trend Calculation'!G7 -> 0 | N18: ='Trend Calculation'!H7 -> 0 | O18: ='Trend Calculation'!I7 -> 0 | P18: ='Trend Calculation'!J7 -> 0 | Q18: ='Trend Calculation'!K7 -> 0 | R18: ='Trend Calculation'!L7 -> 0 | S18: ='Trend Calculation'!M7 -> 0 | T18: ='Trend Calculation'!N7 -> 0 | U18: ='Trend Calculation'!O7 -> 0 | V18: ='Trend Calculation'!P7 -> 0 | W18: ='Trend Calculation'!Q7 -> 0 | X18: ='Trend Calculation'!R7 -> 0 | Y18: ='Trend Calculation'!S7 -> 0 | Z18: ='Trend Calculation'!T7 -> 0 | AA18: ='Trend Calculation'!U7 -> 0 | AB18: ='Trend Calculation'!V7 -> 0 | AC18: ='Trend Calculation'!W7 -> 0 | AD18: ='Trend Calculation'!X7 -> 0 | AE18: ='Trend Calculation'!Y7 -> 0 | AF18: ='Trend Calculation'!Z7 -> 0 | AG18: ='Trend Calculation'!AA7 -> 0
F19: Social Lower Trend | G19: Social Upper Trend | H19: ='Trend Calculation'!B3 -> Government | I19: ='Trend Calculation'!C3 -> UNDP | J19: ='Trend Calculation'!D3 -> OCHA | K19: ='Trend Calculation'!E3 -> Belingerents | L19: ='Trend Calculation'!F3 -> Military | M19: ='Trend Calculation'!G3 -> F | N19: ='Trend Calculation'!H3 -> G | O19: ='Trend Calculation'!I3 -> H | P19: ='Trend Calculation'!J3 -> I | Q19: ='Trend Calculation'!K3 -> J | R19: ='Trend Calculation'!L3 -> K | S19: ='Trend Calculation'!M3 -> L | T19: ='Trend Calculation'!N3 -> M | U19: ='Trend Calculation'!O3 -> N | V19: ='Trend Calculation'!P3 -> O | W19: ='Trend Calculation'!Q3 -> P | X19: ='Trend Calculation'!R3 -> Q | Y19: ='Trend Calculation'!S3 -> R | Z19: ='Trend Calculation'!T3 -> S | AA19: ='Trend Calculation'!U3 -> T | AB19: ='Trend Calculation'!V3 -> U | AC19: ='Trend Calculation'!W3 -> V | AD19: ='Trend Calculation'!X3 -> W | AE19: ='Trend Calculation'!Y3 -> X | AF19: ='Trend Calculation'!Z3 -> Y | AG19: ='Trend Calculation'!AA3 -> Z
E20: t=-1 | F20: =CCA!D9 -> 4 | G20: =CCA!B9 -> 6
E21: t=0 | F21: =CCA!D17 -> 3 | G21: =CCA!B17 -> 4 | H21: 2.5 | I21: 2.5 | J21: 4 | K21: 4.72 | L21: 4.072 | M21: 4 | N21: 4 | O21: 4 | P21: 4 | Q21: 5 | R21: 6 | S21: 7 | T21: 8 | U21: 9 | V21: 10 | W21: 11 | X21: 12 | Y21: 13 | Z21: 14 | AA21: 15 | AB21: 16 | AC21: 17 | AD21: 18 | AE21: 19 | AF21: 20 | AG21: 21
E22: t=1 | F22: ='Trend Calculation'!AB8 -> 6.1 | G22: ='Trend Calculation'!AB17 -> 7.1 | H22: ='Trend Calculation'!B8 -> 3 | I22: ='Trend Calculation'!C8 -> 0 | J22: ='Trend Calculation'!D8 -> 0 | K22: ='Trend Calculation'!E8 -> 1 | L22: ='Trend Calculation'!F8 -> 0 | M22: ='Trend Calculation'!G8 -> 0 | N22: ='Trend Calculation'!H8 -> -0.9 | O22: ='Trend Calculation'!I8 -> 0 | P22: ='Trend Calculation'!J8 -> 0 | Q22: ='Trend Calculation'!K8 -> 0 | R22: ='Trend Calculation'!L8 -> 0 | S22: ='Trend Calculation'!M8 -> 0 | T22: ='Trend Calculation'!N8 -> 0 | U22: ='Trend Calculation'!O8 -> 0 | V22: ='Trend Calculation'!P8 -> 0 | W22: ='Trend Calculation'!Q8 -> 0 | X22: ='Trend Calculation'!R8 -> 0 | Y22: ='Trend Calculation'!S8 -> 0 | Z22: ='Trend Calculation'!T8 -> 0 | AA22: ='Trend Calculation'!U8 -> 0 | AB22: ='Trend Calculation'!V8 -> 0 | AC22: ='Trend Calculation'!W8 -> 0 | AD22: ='Trend Calculation'!X8 -> 0 | AE22: ='Trend Calculation'!Y8 -> 0 | AF22: ='Trend Calculation'!Z8 -> 0 | AG22: ='Trend Calculation'!AA8 -> 0
F23: Food Lower Trend | G23: Food Upper Trend | H23: ='Trend Calculation'!B3 -> Government | I23: ='Trend Calculation'!C3 -> UNDP | J23: ='Trend Calculation'!D3 -> OCHA | K23: ='Trend Calculation'!E3 -> Belingerents | L23: ='Trend Calculation'!F3 -> Military | M23: ='Trend Calculation'!G3 -> F | N23: ='Trend Calculation'!H3 -> G | O23: ='Trend Calculation'!I3 -> H | P23: ='Trend Calculation'!J3 -> I | Q23: ='Trend Calculation'!K3 -> J | R23: ='Trend Calculation'!L3 -> K | S23: ='Trend Calculation'!M3 -> L | T23: ='Trend Calculation'!N3 -> M | U23: ='Trend Calculation'!O3 -> N | V23: ='Trend Calculation'!P3 -> O | W23: ='Trend Calculation'!Q3 -> P | X23: ='Trend Calculation'!R3 -> Q | Y23: ='Trend Calculation'!S3 -> R | Z23: ='Trend Calculation'!T3 -> S | AA23: ='Trend Calculation'!U3 -> T | AB23: ='Trend Calculation'!V3 -> U | AC23: ='Trend Calculation'!W3 -> V | AD23: ='Trend Calculation'!X3 -> W | AE23: ='Trend Calculation'!Y3 -> X | AF23: ='Trend Calculation'!Z3 -> Y | AG23: ='Trend Calculation'!AA3 -> Z
E24: t=-1 | F24: =CCA!D10 -> 5 | G24: =CCA!B10 -> 5
E25: t=0 | F25: =CCA!D18 -> 2 | G25: =CCA!B18 -> 3 | H25: 3.5 | I25: 3.5 | J25: 5 | K25: 5.72 | L25: 5.072 | M25: 5 | N25: 5 | O25: 5 | P25: 5 | Q25: 6 | R25: 7 | S25: 8 | T25: 9 | U25: 10 | V25: 11 | W25: 12 | X25: 13 | Y25: 14 | Z25: 15 | AA25: 16 | AB25: 17 | AC25: 18 | AD25: 19 | AE25: 20 | AF25: 21 | AG25: 22
E26: t=1 | F26: ='Trend Calculation'!AB9 -> 2.6 | G26: ='Trend Calculation'!AB18 -> 3.6 | H26: ='Trend Calculation'!B9 -> 1 | I26: ='Trend Calculation'!C9 -> 0 | J26: ='Trend Calculation'!D9 -> 0 | K26: ='Trend Calculation'!E9 -> 0 | L26: ='Trend Calculation'!F9 -> -0.4 | M26: ='Trend Calculation'!G9 -> 0 | N26: ='Trend Calculation'!H9 -> 0 | O26: ='Trend Calculation'!I9 -> 0 | P26: ='Trend Calculation'!J9 -> 0 | Q26: ='Trend Calculation'!K9 -> 0 | R26: ='Trend Calculation'!L9 -> 0 | S26: ='Trend Calculation'!M9 -> 0 | T26: ='Trend Calculation'!N9 -> 0 | U26: ='Trend Calculation'!O9 -> 0 | V26: ='Trend Calculation'!P9 -> 0 | W26: ='Trend Calculation'!Q9 -> 0 | X26: ='Trend Calculation'!R9 -> 0 | Y26: ='Trend Calculation'!S9 -> 0 | Z26: ='Trend Calculation'!T9 -> 0 | AA26: ='Trend Calculation'!U9 -> 0 | AB26: ='Trend Calculation'!V9 -> 0 | AC26: ='Trend Calculation'!W9 -> 0 | AD26: ='Trend Calculation'!X9 -> 0 | AE26: ='Trend Calculation'!Y9 -> 0 | AF26: ='Trend Calculation'!Z9 -> 0 | AG26: ='Trend Calculation'!AA9 -> 0
A27: SYNTAX DO NOT CHANGE - SYNTAX DO NOT CHANGE - SYNTAX DO NOT CHANGE - SYNTAX DO NOT CHANGE - SYNTAX DO NOT CHANGE
A28: SYNTAX DO NOT CHANGE - SYNTAX DO NOT CHANGE - SYNTAX DO NOT CHANGE - SYNTAX DO NOT CHANGE - SYNTAX DO NOT CHANGE
A29: SYNTAX DO NOT CHANGE - SYNTAX DO NOT CHANGE - SYNTAX DO NOT CHANGE - SYNTAX DO NOT CHANGE - SYNTAX DO NOT CHANGE
E30: Ideal context A | F30: Average context B1 | H30: Latent Threat C1 | I30: Manifest Threat D1
E32: 6 | F32: 5 | H32: 3 | I32: 1
E33: 6 | F33: 5 | H33: 3 | I33: 1
E34: 6 | F34: 5 | H34: 3 | I34: 1
E35: 6 | F35: 5 | H35: 3 | I35: 1
E36: 6 | F36: 5 | H36: 3 | I36: 1
E37: 6 | F37: 5 | H37: 3 | I37: 1
A38: SYNTAX DO NOT CHANGE - SYNTAX DO NOT CHANGE - SYNTAX DO NOT CHANGE - SYNTAX DO NOT CHANGE - SYNTAX DO NOT CHANGE
A39: SYNTAX DO NOT CHANGE - SYNTAX DO NOT CHANGE - SYNTAX DO NOT CHANGE - SYNTAX DO NOT CHANGE - SYNTAX DO NOT CHANGE
E40: Level A | F40: Average context B2 | G40: Capabilities/Constraints Threshold | H40: Latent Threat C2 | I40: Manifest Threat D2
E42: 6 | F42: 4 | G42: 3.5 | H42: 2 | I42: 0
E43: 6 | F43: 4 | G43: 3.5 | H43: 2 | I43: 0
E44: 6 | F44: 4 | G44: 3.5 | H44: 2 | I44: 0
E45: 6 | F45: 4 | G45: 3.5 | H45: 2 | I45: 0
E46: 6 | F46: 4 | G46: 3.5 | H46: 2 | I46: 0
E47: 6 | F47: 4 | G47: 3.5 | H47: 2 | I47: 0
A48: SYNTAX DO NOT CHANGE - SYNTAX DO NOT CHANGE - SYNTAX DO NOT CHANGE - SYNTAX DO NOT CHANGE - SYNTAX DO NOT CHANGE
A49: SYNTAX DO NOT CHANGE - SYNTAX DO NOT CHANGE - SYNTAX DO NOT CHANGE - SYNTAX DO NOT CHANGE - SYNTAX DO NOT CHANGE
A50: SYNTAX DO NOT CHANGE - SYNTAX DO NOT CHANGE - SYNTAX DO NOT CHANGE - SYNTAX DO NOT CHANGE - SYNTAX DO NOT CHANGE

Sheet Trend Calculation (hidden)
A1: SYNTAX DO NOT CHANGE - SYNTAX DO NOT CHANGE - SYNTAX DO NOT CHANGE - SYNTAX DO NOT CHANGE - SYNTAX DO NOT CHANGE
B2: Actors | K2: Actors | AB2: Trend
B3: ='AGIRI Calculations'!A5 -> Government | C3: ='AGIRI Calculations'!A11 -> UNDP | D3: ='AGIRI Calculations'!A17 -> OCHA | E3: ='AGIRI Calculations'!A23 -> Belingerents | F3: ='AGIRI Calculations'!A29 -> Military | G3: ='AGIRI Calculations'!A35 -> F | H3: ='AGIRI Calculations'!A41 -> G | I3: ='AGIRI Calculations'!A47 -> H | J3: ='AGIRI Calculations'!A53 -> I | K3: ='AGIRI Calculations'!A59 -> J | L3: ='AGIRI Calculations'!A65 -> K | M3: ='AGIRI Calculations'!A71 -> L | N3: ='AGIRI Calculations'!A77 -> M | O3: ='AGIRI Calculations'!A83 -> N | P3: ='AGIRI Calculations'!A89 -> O | Q3: ='AGIRI Calculations'!A95 -> P | R3: ='AGIRI Calculations'!A101 -> Q | S3: ='AGIRI Calculations'!A107 -> R | T3: ='AGIRI Calculations'!A113 -> S | U3: ='AGIRI Calculations'!A119 -> T | V3: ='AGIRI Calculations'!A125 -> U | W3: ='AGIRI Calculations'!A131 -> V | X3: ='AGIRI Calculations'!A137 -> W | Y3: ='AGIRI Calculations'!A143 -> X | Z3: ='AGIRI Calculations'!A149 -> Y | AA3: ='AGIRI Calculations'!A155 -> Z | AB3: Lower
A4: Environmental context | B4: ='AGIRI Calculations'!E5 -> 0.2 | C4: ='AGIRI Calculations'!E11 -> -1.2 | D4: ='AGIRI Calculations'!E17 -> 3 | E4: ='AGIRI Calculations'!E23 -> -0.4 | F4: ='AGIRI Calculations'!E29 -> 0 | G4: ='AGIRI Calculations'!E35 -> 0 | H4: ='AGIRI Calculations'!E41 -> 0 | I4: ='AGIRI Calculations'!E47 -> 1 | J4: ='AGIRI Calculations'!E53 -> 0 | K4: ='AGIRI Calculations'!E59 -> 0 | L4: ='AGIRI Calculations'!E65 -> 0 | M4: ='AGIRI Calculations'!E71 -> 0 | N4: ='AGIRI Calculations'!E77 -> 0 | O4: ='AGIRI Calculations'!E83 -> 0 | P4: ='AGIRI Calculations'!E89 -> 0 | Q4: ='AGIRI Calculations'!E95 -> 0 | R4: ='AGIRI Calculations'!E101 -> 0 | S4: ='AGIRI Calculations'!E107 -> 0 | T4: ='AGIRI Calculations'!E113 -> 0 | U4: ='AGIRI Calculations'!E119 -> 0 | V4: ='AGIRI Calculations'!E125 -> 0 | W4: ='AGIRI Calculations'!E131 -> 0 | X4: ='AGIRI Calculations'!E137 -> 0 | Y4: ='AGIRI Calculations'!E143 -> 0 | Z4: ='AGIRI Calculations'!E149 -> 0 | AA4: ='AGIRI Calculations'!E155 -> 0 | AB4: =CCA!D13+SUM(B4:AA4) -> 6.6
A5: Health context | B5: ='AGIRI Calculations'!E6 -> 0 | C5: ='AGIRI Calculations'!E12 -> 0 | D5: ='AGIRI Calculations'!E18 -> 0 | E5: ='AGIRI Calculations'!E24 -> 0 | F5: ='AGIRI Calculations'!E30 -> 0 | G5: ='AGIRI Calculations'!E36 -> 0 | H5: ='AGIRI Calculations'!E42 -> 0 | I5: ='AGIRI Calculations'!E48 -> 0 | J5: ='AGIRI Calculations'!E54 -> -0.9 | K5: ='AGIRI Calculations'!E60 -> 0 | L5: ='AGIRI Calculations'!E66 -> 0 | M5: ='AGIRI Calculations'!E72 -> 0 | N5: ='AGIRI Calculations'!E78 -> 0 | O5: ='AGIRI Calculations'!E84 -> 0 | P5: ='AGIRI Calculations'!E90 -> 0 | Q5: ='AGIRI Calculations'!E96 -> 0 | R5: ='AGIRI Calculations'!E102 -> 0 | S5: ='AGIRI Calculations'!E108 -> 0 | T5: ='AGIRI Calculations'!E114 -> 0 | U5: ='AGIRI Calculations'!E120 -> 0 | V5: ='AGIRI Calculations'!E126 -> 0 | W5: ='AGIRI Calculations'!E132 -> 0 | X5: ='AGIRI Calculations'!E138 -> 0 | Y5: ='AGIRI Calculations'!E144 -> 0 | Z5: ='AGIRI Calculations'!E150 -> 0 | AA5: ='AGIRI Calculations'!E156 -> 0 | AB5: =CCA!D14+SUM(B5:AA5) -> 1.1
A6: Political context | B6: ='AGIRI Calculations'!E7 -> 1 | C6: ='AGIRI Calculations'!E13 -> 0 | D6: ='AGIRI Calculations'!E19 -> 0 | E6: ='AGIRI Calculations'!E25 -> 0 | F6: ='AGIRI Calculations'!E31 -> 0 | G6: ='AGIRI Calculations'!E37 -> -0.9 | H6: ='AGIRI Calculations'!E43 -> 0 | I6: ='AGIRI Calculations'!E49 -> 0 | J6: ='AGIRI Calculations'!E55 -> 0 | K6: ='AGIRI Calculations'!E61 -> 0 | L6: ='AGIRI Calculations'!E67 -> 0 | M6: ='AGIRI Calculations'!E73 -> 0 | N6: ='AGIRI Calculations'!E79 -> 0 | O6: ='AGIRI Calculations'!E85 -> 0 | P6: ='AGIRI Calculations'!E91 -> 0 | Q6: ='AGIRI Calculations'!E97 -> 0 | R6: ='AGIRI Calculations'!E103 -> 0 | S6: ='AGIRI Calculations'!E109 -> 0 | T6: ='AGIRI Calculations'!E115 -> 0 | U6: ='AGIRI Calculations'!E121 -> 0 | V6: ='AGIRI Calculations'!E127 -> 0 | W6: ='AGIRI Calculations'!E133 -> 0 | X6: ='AGIRI Calculations'!E139 -> 0 | Y6: ='AGIRI Calculations'!E145 -> 0 | Z6: ='AGIRI Calculations'!E151 -> 0 | AA6: ='AGIRI Calculations'!E157 -> 0 | AB6: =CCA!D15+SUM(B6:AA6) -> 5.1
A7: Economic context | B7: ='AGIRI Calculations'!E8 -> 2 | C7: ='AGIRI Calculations'!E14 -> 0 | D7: ='AGIRI Calculations'!E20 -> 3 | E7: ='AGIRI Calculations'!E26 -> 0 | F7: ='AGIRI Calculations'!E32 -> 0 | G7: ='AGIRI Calculations'!E38 -> 0 | H7: ='AGIRI Calculations'!E44 -> 0 | I7: ='AGIRI Calculations'!E50 -> 0 | J7: ='AGIRI Calculations'!E56 -> 0 | K7: ='AGIRI Calculations'!E62 -> 0 | L7: ='AGIRI Calculations'!E68 -> 0 | M7: ='AGIRI Calculations'!E74 -> 0 | N7: ='AGIRI Calculations'!E80 -> 0 | O7: ='AGIRI Calculations'!E86 -> 0 | P7: ='AGIRI Calculations'!E92 -> 0 | Q7: ='AGIRI Calculations'!E98 -> 0 | R7: ='AGIRI Calculations'!E104 -> 0 | S7: ='AGIRI Calculations'!E110 -> 0 | T7: ='AGIRI Calculations'!E116 -> 0 | U7: ='AGIRI Calculations'!E122 -> 0 | V7: ='AGIRI Calculations'!E128 -> 0 | W7: ='AGIRI Calculations'!E134 -> 0 | X7: ='AGIRI Calculations'!E140 -> 0 | Y7: ='AGIRI Calculations'!E146 -> 0 | Z7: ='AGIRI Calculations'!E152 -> 0 | AA7: ='AGIRI Calculations'!E158 -> 0 | AB7: =CCA!D16+SUM(B7:AA7) -> 8
A8: Social context | B8: ='AGIRI Calculations'!E9 -> 3 | C8: ='AGIRI Calculations'!E15 -> 0 | D8: ='AGIRI Calculations'!E21 -> 0 | E8: ='AGIRI Calculations'!E27 -> 1 | F8: ='AGIRI Calculations'!E33 -> 0 | G8: ='AGIRI Calculations'!E39 -> 0 | H8: ='AGIRI Calculations'!E45 -> -0.9 | I8: ='AGIRI Calculations'!E51 -> 0 | J8: ='AGIRI Calculations'!E57 -> 0 | K8: ='AGIRI Calculations'!E63 -> 0 | L8: ='AGIRI Calculations'!E69 -> 0 | M8: ='AGIRI Calculations'!E75 -> 0 | N8: ='AGIRI Calculations'!E81 -> 0 | O8: ='AGIRI Calculations'!E87 -> 0 | P8: ='AGIRI Calculations'!E93 -> 0 | Q8: ='AGIRI Calculations'!E99 -> 0 | R8: ='AGIRI Calculations'!E105 -> 0 | S8: ='AGIRI Calculations'!E111 -> 0 | T8: ='AGIRI Calculations'!E117 -> 0 | U8: ='AGIRI Calculations'!E123 -> 0 | V8: ='AGIRI Calculations'!E129 -> 0 | W8: ='AGIRI Calculations'!E135 -> 0 | X8: ='AGIRI Calculations'!E141 -> 0 | Y8: ='AGIRI Calculations'!E147 -> 0 | Z8: ='AGIRI Calculations'!E153 -> 0 | AA8: ='AGIRI Calculations'!E159 -> 0 | AB8: =CCA!D17+SUM(B8:AA8) -> 6.1
A9: Food context | B9: ='AGIRI Calculations'!E10 -> 1 | C9: ='AGIRI Calculations'!E16 -> 0 | D9: ='AGIRI Calculations'!E22 -> 0 | E9: ='AGIRI Calculations'!E28 -> 0 | F9: ='AGIRI Calculations'!E34 -> -0.4 | G9: ='AGIRI Calculations'!E40 -> 0 | H9: ='AGIRI Calculations'!E46 -> 0 | I9: ='AGIRI Calculations'!E52 -> 0 | J9: ='AGIRI Calculations'!E58 -> 0 | K9: ='AGIRI Calculations'!E64 -> 0 | L9: ='AGIRI Calculations'!E70 -> 0 | M9: ='AGIRI Calculations'!E76 -> 0 | N9: ='AGIRI Calculations'!E82 -> 0 | O9: ='AGIRI Calculations'!E88 -> 0 | P9: ='AGIRI Calculations'!E94 -> 0 | Q9: ='AGIRI Calculations'!E100 -> 0 | R9: ='AGIRI Calculations'!E106 -> 0 | S9: ='AGIRI Calculations'!E112 -> 0 | T9: ='AGIRI Calculations'!E118 -> 0 | U9: ='AGIRI Calculations'!E124 -> 0 | V9: ='AGIRI Calculations'!E130 -> 0 | W9: ='AGIRI Calculations'!E136 -> 0 | X9: ='AGIRI Calculations'!E142 -> 0 | Y9: ='AGIRI Calculations'!E148 -> 0 | Z9: ='AGIRI Calculations'!E154 -> 0 | AA9: ='AGIRI Calculations'!E160 -> 0 | AB9: =CCA!D18+SUM(B9:AA9) -> 2.6
A11: =A2 -> 0 | B11: Actors | C11: 0 | D11: 0 | E11: 0 | F11: 0 | G11: 0 | H11: 0 | I11: 0 | J11: 0 | K11: Actors | L11: 0 | M11: 0 | N11: 0 | AB11: Trend
A12: =A3 -> 0 | B12: Government | C12: UNDP | D12: OCHA | E12: Belingerents | F12: Military | G12: F | H12: G | I12: H | J12: I | K12: J | L12: K | M12: L | N12: M | O12: N | P12: O | Q12: P | R12: Q | S12: R | T12: S | U12: T | V12: U | W12: V | X12: W | Y12: X | Z12: Y | AA12: Z | AB12: Upper
A13: =A4 -> Environmental context | B13: 0.2 | C13: -1.2 | D13: 3 | E13: -0.4 | F13: 0 | G13: 0 | H13: 0 | I13: 1 | J13: 0 | K13: 0 | L13: 0 | M13: 0 | N13: 0 | O13: 0 | P13: 0 | Q13: 0 | R13: 0 | S13: 0 | T13: 0 | U13: 0 | V13: 0 | W13: 0 | X13: 0 | Y13: 0 | Z13: 0 | AA13: 0 | AB13: =CCA!B13+SUM(B13:AA13) -> 6.6
A14: =A5 -> Health context | B14: 0 | C14: 0 | D14: 0 | E14: 0 | F14: 0 | G14: 0 | H14: 0 | I14: 0 | J14: -0.9 | K14: 0 | L14: 0 | M14: 0 | N14: 0 | O14: 0 | P14: 0 | Q14: 0 | R14: 0 | S14: 0 | T14: 0 | U14: 0 | V14: 0 | W14: 0 | X14: 0 | Y14: 0 | Z14: 0 | AA14: 0 | AB14: =CCA!B14+SUM(B14:AA14) -> 2.1
A15: =A6 -> Political context | B15: 1 | C15: 0 | D15: 0 | E15: 0 | F15: 0 | G15: -0.9 | H15: 0 | I15: 0 | J15: 0 | K15: 0 | L15: 0 | M15: 0 | N15: 0 | O15: 0 | P15: 0 | Q15: 0 | R15: 0 | S15: 0 | T15: 0 | U15: 0 | V15: 0 | W15: 0 | X15: 0 | Y15: 0 | Z15: 0 | AA15: 0 | AB15: =CCA!B15+SUM(B15:AA15) -> 5.1
A16: =A7 -> Economic context | B16: 2 | C16: 0 | D16: 3 | E16: 0 | F16: 0 | G16: 0 | H16: 0 | I16: 0 | J16: 0 | K16: 0 | L16: 0 | M16: 0 | N16: 0 | O16: 0 | P16: 0 | Q16: 0 | R16: 0 | S16: 0 | T16: 0 | U16: 0 | V16: 0 | W16: 0 | X16: 0 | Y16: 0 | Z16: 0 | AA16: 0 | AB16: =CCA!B16+SUM(B16:AA16) -> 9
A17: =A8 -> Social context | B17: 3 | C17: 0 | D17: 0 | E17: 1 | F17: 0 | G17: 0 | H17: -0.9 | I17: 0 | J17: 0 | K17: 0 | L17: 0 | M17: 0 | N17: 0 | O17: 0 | P17: 0 | Q17: 0 | R17: 0 | S17: 0 | T17: 0 | U17: 0 | V17: 0 | W17: 0 | X17: 0 | Y17: 0 | Z17: 0 | AA17: 0 | AB17: =CCA!B17+SUM(B17:AA17) -> 7.1
A18: =A9 -> Food context | B18: 1 | C18: 0 | D18: 0 | E18: 0 | F18: -0.4 | G18: 0 | H18: 0 | I18: 0 | J18: 0 | K18: 0 | L18: 0 | M18: 0 | N18: 0 | O18: 0 | P18: 0 | Q18: 0 | R18: 0 | S18: 0 | T18: 0 | U18: 0 | V18: 0 | W18: 0 | X18: 0 | Y18: 0 | Z18: 0 | AA18: 0 | AB18: =CCA!B18+SUM(B18:AA18) -> 3.6
A19: SYNTAX DO NOT CHANGE - SYNTAX DO NOT CHANGE - SYNTAX DO NOT CHANGE - SYNTAX DO NOT CHANGE - SYNTAX DO NOT CHANGE
A20: SYNTAX DO NOT CHANGE - SYNTAX DO NOT CHANGE - SYNTAX DO NOT CHANGE - SYNTAX DO NOT CHANGE - SYNTAX DO NOT CHANGE
A21: SYNTAX DO NOT CHANGE - SYNTAX DO NOT CHANGE - SYNTAX DO NOT CHANGE - SYNTAX DO NOT CHANGE - SYNTAX DO NOT CHANGE
